bitfinex-derivatives/quotes_SOLF0:USTF0_20250919
["timestamp","ask_amount","ask_price","bid_price","bid_amount"]
[1758317506098,6.56,237.97,237.92,0.03005874]
[1758317506499,0.73169962,237.98,237.92,0.03005874]
[1758317506705,6.56,237.97,237.92,0.03005874]
[1758317507096,0.73169962,237.98,237.92,0.03005874]
[1758317508398,6.56,237.97,237.92,0.03005874]
[1758317508602,0.73169962,237.98,237.92,0.03005874]
[1758317509008,6.56,237.97,237.92,0.03005874]
[1758317509203,0.73169962,237.98,237.92,0.03005874]
[1758317509704,6.56,237.97,237.92,0.03005874]
[1758317509901,0.73169962,237.98,237.92,7.05005874]
[1758317510602,7.29169962,237.98,237.92,7.05005874]
[1758317513506,7.29169962,237.98,237.92,10.83045874]
[1758317520504,0.73169962,237.98,237.92,10.83045874]
[1758317520900,5.44022977,237.98,237.92,10.83045874]
[1758317522005,6.96,237.97,237.92,10.83045874]
[1758317522705,5.44022977,237.98,237.92,7.05005874]
[1758317522912,6.96,237.97,237.92,7.05005874]
[1758317523313,5.44022977,237.98,237.92,7.05005874]
[1758317523604,6.96,237.97,237.92,7.05005874]
[1758317523810,6.96,237.97,237.92,0.03005874]
[1758317524205,5.44022977,237.98,237.92,0.03005874]
[1758317524408,6.96,237.97,237.92,0.03005874]
[1758317524605,5.44022977,237.98,237.93,6.64]
[1758317525205,4.70853015,237.97,237.93,6.64]
[1758317525406,6.96,237.96,237.93,6.64]
[1758317526712,6.96,237.96,237.92,0.03005874]
[1758317526907,6.96,237.96,237.93,6.64]
[1758317530119,6.96,237.96,237.92,3.81045874]
[1758317530417,6.96,237.96,237.93,6.64]
[1758317530713,6.96,237.96,237.92,3.81045874]
[1758317530911,6.96,237.96,237.93,6.64]
[1758317532313,11.66853015,237.96,237.93,6.64]
[1758317532518,11.66853015,237.96,237.92,3.81045874]
[1758317532722,11.66853015,237.96,237.93,6.64]
[1758317536520,6.96,237.96,237.93,6.64]
[1758317537317,4.70853015,237.97,237.93,6.64]
[1758317537522,6.96,237.96,237.93,6.64]
[1758317539725,0.73169962,237.98,237.93,6.64]
[1758317540022,6.96,237.97,237.92,3.81045874]
[1758317540226,0.73169962,237.98,237.92,3.81045874]
[1758317540425,7.69169962,237.98,237.92,10.45045874]
[1758317540624,12.40022977,237.98,237.92,10.45045874]
[1758317544018,4.70853015,237.97,237.92,10.45045874]
[1758317544219,6.96,237.96,237.92,10.45045874]
[1758317544628,6.96,237.97,237.92,10.45045874]
[1758317544922,0.73169962,237.98,237.92,10.45045874]
[1758317545128,4.72552517,237.97,237.92,10.45045874]
[1758317545323,4.72552517,237.97,237.93,6.64]
[1758317545627,6.96,237.96,237.93,6.64]
[1758317546731,0.73169962,237.98,237.93,6.64]
[1758317546926,6.96,237.97,237.92,3.81045874]
[1758317547430,11.68559289,237.97,237.92,3.81045874]
[1758317547728,4.72559289,237.97,237.92,10.45045874]
[1758317547933,6.96,237.96,237.92,3.81045874]
[1758317548230,4.72559289,237.97,237.93,6.64]
[1758317548530,6.77,237.96,237.93,6.64]
[1758317548926,6.77,237.94,237.92,0.03005874]
[1758317549129,6.77,237.93,237.92,0.03005874]
[1758317565154,11.49559289,237.93,237.86,3.7815]
[1758317565354,6.77,237.93,237.86,3.7815]
[1758317570257,11.49559289,237.93,237.86,3.7815]
[1758317571057,6.77,237.93,237.86,3.7815]
[1758317574059,6.77,237.93,237.87,3.7812]
[1758317575161,6.77,237.93,237.88,3.781]
[1758317575862,0.03100732,237.93,237.88,3.781]
[1758317576062,6.77,237.92,237.88,3.781]
[1758317576259,0.03100732,237.93,237.88,3.781]
[1758317576459,6.77,237.92,237.88,3.781]
[1758317576961,0.03100732,237.93,237.88,3.781]
[1758317577361,6.77,237.92,237.88,11.021]
[1758317577560,0.03100732,237.93,237.88,11.021]
[1758317577763,6.77,237.92,237.88,11.021]
[1758317577955,0.03100732,237.93,237.82,58.8327]
[1758317577956,0.03100732,237.93,237.87,7.24]
[1758317579859,0.03100732,237.93,237.92,3.7805]
[1758317580165,0.03100732,237.93,237.92,10.4105]
[1758317592879,6.74100732,237.93,237.92,3.7805]
[1758317593069,0.03100732,237.93,237.92,10.4105]
[1758317624727,0.03100732,237.93,237.92,111.9905]
[1758317631827,0.03100732,237.93,237.92,112.4105]
[1758317634121,4.72559289,238.04,238.0,3.7791]
[1758317634324,7.2,238.03,238.0,105.3391]
[1758317635129,5.45714639,238.05,238.0,105.3391]
[1758317635330,7.2,238.04,238.0,105.3391]
[1758317635528,5.45714639,238.05,238.0,105.3391]
[1758317635729,7.2,238.04,238.0,105.3391]
[1758317635929,5.45714639,238.05,238.0,105.3391]
[1758317636130,7.2,238.04,238.0,105.3391]
[1758317636331,5.45714639,238.05,238.0,105.3391]
[1758317636733,7.2,238.04,238.0,105.3391]
[1758317636935,5.45714639,238.05,238.0,105.3391]
[1758317637435,5.45714639,238.05,238.01,3.779]
[1758317637837,7.2,238.04,238.01,3.779]
[1758317638036,0.7315535,238.05,238.01,3.779]
[1758317638942,7.14,238.04,238.01,3.779]
[1758317639137,0.7315535,238.05,238.01,3.779]
[1758317639436,7.14,238.04,238.01,3.779]
[1758317639637,7.18,238.04,238.01,3.779]
[1758317640039,0.7315535,238.05,238.01,3.779]
[1758317641239,0.7315535,238.05,238.02,7.1]
[1758317641240,7.18,238.04,238.02,7.1]
[1758317641437,0.7315535,238.05,238.02,7.1]
[1758317641640,7.18,238.04,238.02,3.7788]
[1758317642042,7.18,238.04,238.02,10.8788]
[1758317642244,7.18,238.06,238.05,3.7785]
[1758317643240,10.86578933,238.12,238.0,101.56]
[1758317643241,4.72559289,238.11,238.06,10.8782]
[1758317643543,0.73133826,238.1,238.06,10.8782]
[1758317643844,0.73133826,238.1,238.06,10.90896565]
[1758317644339,7.18,238.09,238.06,10.90896565]
[1758317644844,4.72559289,238.16,238.07,7.1]
[1758317645047,4.72559289,238.18,238.08,103.52]
[1758317645241,4.72559289,238.2,238.09,7.1]
[1758317645747,4.72559289,238.21,238.11,0.02952511]
[1758317646342,8.50149289,238.22,238.11,0.02952511]
[1758317646643,3.7761,238.2,238.11,0.02952511]
[1758317646840,7.18,238.19,238.11,0.02952511]
[1758317648152,3.7761,238.2,238.12,3.70962835]
[1758317648153,7.18,238.17,238.12,3.70962835]
[1758317648452,7.18,238.17,238.13,3.70962835]
[1758317648654,7.18,238.17,238.11,0.02952511]
[1758317648854,7.18,238.17,238.12,3.70792402]
[1758317649155,7.18,238.17,238.11,0.02952511]
[1758317649355,0.73113084,238.18,238.12,3.70648839]
[1758317649654,7.18,238.17,238.11,0.02952511]
[1758317649955,7.18,238.17,238.12,3.93734119]
[1758317650148,0.73113084,238.18,238.13,3.93734119]
[1758317650455,0.73113084,238.18,238.14,3.93734119]
[1758317650653,7.18,238.17,238.15,3.93734119]
[1758317650849,7.18,238.17,238.11,0.02952511]
[1758317651053,0.73113084,238.18,238.12,3.93605163]
[1758317651251,7.18,238.17,238.13,3.93605163]
[1758317651451,0.73113084,238.18,238.14,3.93605163]
[1758317651653,7.18,238.17,238.11,0.02952511]
[1758317651849,0.73113084,238.18,238.12,3.93496113]
[1758317652054,0.73113084,238.18,238.13,3.93496113]
[1758317652255,7.18,238.17,238.14,3.93496113]
[1758317652450,7.18,238.17,238.11,0.02952511]
[1758317652651,7.18,238.17,238.12,3.93404993]
[1758317652955,0.73113084,238.18,238.13,3.93404993]
[1758317653246,7.18,238.17,238.14,3.93404993]
[1758317653443,7.18,238.17,238.11,0.02952511]
[1758317653650,7.18,238.17,238.12,3.93314339]
[1758317653849,0.73113084,238.18,238.13,3.93314339]
[1758317654046,0.73113084,238.18,238.11,0.02952511]
[1758317654257,7.18,238.17,238.12,3.93242319]
[1758317654456,7.18,238.17,238.13,3.93242319]
[1758317654656,7.18,238.17,238.11,0.02952511]
[1758317654852,0.73113084,238.18,238.12,3.93254214]
[1758317655057,0.73113084,238.18,238.13,3.93254214]
[1758317655259,0.73113084,238.18,238.11,0.02952511]
[1758317655260,7.18,238.17,238.11,0.02952511]
[1758317655459,0.73113084,238.18,238.12,3.93198692]
[1758317655651,7.18,238.17,238.13,3.93198692]
[1758317655850,7.18,238.17,238.11,0.02952511]
[1758317656056,7.18,238.17,238.12,3.93198692]
[1758317656257,7.18,238.17,238.13,3.93198692]
[1758317656462,7.18,238.17,238.11,0.02952511]
[1758317656657,7.18,238.17,238.12,3.93154474]
[1758317656849,4.50763084,238.18,238.13,3.93154474]
[1758317657055,7.18,238.17,238.11,0.02952511]
[1758317657255,4.50763084,238.18,238.12,3.93075741]
[1758317657452,4.50763084,238.18,238.13,3.93075741]
[1758317657652,7.18,238.17,238.11,0.02952511]
[1758317657948,4.50763084,238.18,238.12,11.03076013]
[1758317658152,7.18,238.17,238.13,3.93076013]
[1758317658352,4.50763084,238.18,238.12,7.1]
[1758317658552,4.50763084,238.18,238.13,3.92963365]
[1758317658758,7.18,238.17,238.12,7.1]
[1758317658958,4.50763084,238.18,238.13,3.92923582]
[1758317659163,4.50763084,238.18,238.12,7.1]
[1758317659356,7.18,238.17,238.12,7.1]
[1758317659555,7.18,238.17,238.13,3.92862429]
[1758317659757,7.18,238.17,238.11,0.02952511]
[1758317660053,0.73113084,238.18,238.12,3.9286881]
[1758317660358,0.73113084,238.18,238.11,0.02952511]
[1758317660359,0.73113084,238.18,238.14,7.1]
[1758317661661,0.73113084,238.18,238.12,7.1]
[1758317661856,7.91113084,238.18,238.14,7.1]
[1758317662056,7.91113084,238.18,238.11,0.02952511]
[1758317662258,7.91113084,238.18,238.12,11.02797831]
[1758317662457,7.18,238.17,238.14,7.1]
[1758317663462,7.18,238.17,238.11,7.12952511]
[1758317663761,7.18,238.17,238.12,3.92842497]
[1758317663965,0.73113084,238.18,238.13,3.92842497]
[1758317664266,7.18,238.17,238.14,3.92819419]
[1758317664465,7.18,238.17,238.11,7.12952511]
[1758317664664,7.18,238.17,238.12,11.02847732]
[1758317664865,0.73113084,238.18,238.13,11.02847732]
[1758317665066,7.18,238.17,238.14,3.92847732]
[1758317665367,0.73113084,238.18,238.13,7.1]
[1758317665565,0.73113084,238.18,238.14,3.92869404]
[1758317665764,0.73113084,238.18,238.13,7.1]
[1758317665965,0.73113084,238.18,238.14,11.02869781]
[1758317665966,7.18,238.17,238.14,11.02869781]
[1758317666166,0.73113084,238.18,238.14,7.1]
[1758317666766,7.18,238.17,238.14,7.1]
[1758317666962,7.18,238.17,238.12,7.1]
[1758317667164,7.18,238.17,238.14,7.1]
[1758317667671,0.73113084,238.18,238.14,7.1]
[1758317668166,7.18,238.17,238.14,7.1]
[1758317668468,0.73113084,238.18,238.14,7.1]
[1758317668867,6.56,238.17,238.14,7.1]
[1758317669468,0.73113084,238.18,238.14,7.1]
[1758317669668,6.56,238.17,238.14,7.1]
[1758317669866,0.73113084,238.18,238.14,7.1]
[1758317670268,6.56,238.17,238.14,7.1]
[1758317671473,6.56,238.17,238.12,6.85]
[1758317671674,6.56,238.17,238.14,6.85]
[1758317672870,6.56,238.16,238.14,6.85]
[1758317673067,6.56,238.17,238.11,0.02952511]
[1758317673566,3.7772,238.14,238.11,0.02952511]
[1758317673772,6.56,238.13,238.11,0.02952511]
[1758317673971,6.56,238.13,238.11,6.87952511]
[1758317675070,3.7772,238.14,238.12,6.85]
[1758317675676,10.3372,238.14,238.12,6.85]
[1758317676680,10.3372,238.14,238.11,6.87952511]
[1758317677174,6.56,238.13,238.11,6.87952511]
[1758317677375,3.7772,238.14,238.11,0.02952511]
[1758317677569,6.56,238.13,238.11,0.02952511]
[1758317678167,6.56,238.13,238.11,6.87952511]
[1758317691988,4.72559289,238.17,238.11,0.02952511]
[1758317692292,6.56,238.23,238.13,6.85]
[1758317692492,6.56,238.23,238.14,3.91041477]
[1758317692695,6.56,238.23,238.15,3.91041477]
[1758317692889,6.56,238.23,238.16,3.91041477]
[1758317693191,6.56,238.23,238.17,3.91041477]
[1758317693393,6.56,238.23,238.18,3.91041477]
[1758317693593,6.56,238.23,238.19,3.91041477]
[1758317693789,3.776,238.21,238.2,3.91041477]
[1758317693994,10.336,238.21,238.2,3.91041477]
[1758317694293,11.38594038,238.21,238.16,0.02974555]
[1758317694495,6.56,238.19,238.16,0.02974555]
[1758317694695,7.60994038,238.18,238.16,0.02974555]
[1758317694895,1.04994038,238.17,238.16,0.02974555]
[1758317698303,7.60994038,238.17,238.16,0.02974555]
[1758317698906,7.60997925,238.17,238.16,0.02974555]
[1758317704408,6.8,238.28,238.17,6.99]
[1758317704802,6.8,238.26,238.17,6.99]
[1758317705002,6.8,238.22,238.09,6.99]
[1758317705302,3.7756,238.23,238.2,0.02971169]
[1758317705503,3.7756,238.23,238.21,3.71405331]
[1758317705504,6.8,238.22,238.21,3.71405331]
[1758317706302,3.7756,238.23,238.21,3.87146102]
[1758317706608,117.3356,238.23,238.22,3.87136605]
[1758317709402,6.8,238.2,238.19,0.02655951]
[1758317715902,7.8192361,238.27,238.2,6.99]
[1758317716204,62.96,238.29,238.2,6.99]
[1758317716407,0.73083143,238.27,238.2,6.99]
[1758317717501,3.7752,238.26,238.2,6.99]
[1758317721009,108.06,238.26,238.2,6.99]
[1758317721608,3.7752,238.26,238.2,6.99]
[1758317721809,108.04,238.25,238.2,6.99]
[1758317722006,108.04,238.25,238.19,0.02655951]
[1758317722210,108.04,238.25,238.2,6.99]
[1758317722413,108.04,238.25,238.19,0.02655951]
[1758317722905,114.84,238.25,238.2,6.99]
[1758317723106,114.84,238.25,238.19,0.02655951]
[1758317723304,114.84,238.25,238.2,6.99]
[1758317723803,114.84,238.25,238.19,0.02655951]
[1758317726509,108.04,238.25,238.19,7.01655951]
[1758317727108,6.8,238.26,238.19,7.01655951]
[1758317727313,107.96,238.25,238.19,7.01655951]
[1758317728713,6.8,238.26,238.19,7.01655951]
[1758317729013,107.88,238.25,238.19,7.01655951]
[1758317729209,6.8,238.26,238.19,7.01655951]
[1758317729510,107.92,238.25,238.19,7.01655951]
[1758317731315,6.8,238.26,238.19,7.01655951]
[1758317731510,7.01,238.24,238.19,7.01655951]
[1758317731811,114.91,238.25,238.19,7.01655951]
[1758317732717,0.02,238.3,238.2,7.09]
[1758317733605,0.02,238.3,238.19,0.02655951]
[1758317733606,0.02,238.3,238.24,7.09]
[1758317734319,0.02,238.3,238.26,7.09]
[1758317735214,0.02,238.3,238.25,0.03111591]
[1758317735518,0.02,238.3,238.26,7.09]
[1758317735718,0.02,238.3,238.25,0.03111591]
[1758317735918,0.02,238.3,238.27,3.7749]
[1758317736318,0.02,238.3,238.28,7.09]
[1758317737518,0.02,238.3,238.27,3.7749]
[1758317737919,0.02,238.3,238.28,7.09]
[1758317738121,0.02,238.3,238.27,3.7749]
[1758317738512,0.02,238.3,238.28,7.09]
[1758317738915,0.02,238.3,238.29,7.09]
[1758317740223,0.02,238.3,238.29,7.51]
[1758317740422,0.02,238.3,238.29,7.09]
[1758317763943,0.02,238.3,238.28,3.7747]
[1758317764145,7.16,238.3,238.28,3.7747]
[1758317764540,7.16,238.3,238.28,10.9147]
[1758317764749,0.02,238.3,238.28,10.9147]
[1758317766445,7.14,238.29,238.25,3.80631591]
[1758317766846,7.14,238.29,238.26,7.14]
[1758317767142,7.14,238.29,238.25,3.80631591]
[1758317767345,7.14,238.29,238.26,7.14]
[1758317767646,7.14,238.29,238.25,3.80631591]
[1758317767842,7.14,238.29,238.26,7.14]
[1758317768146,7.14,238.29,238.25,3.80631591]
[1758317768646,7.14,238.29,238.26,7.14]
[1758317768946,0.02,238.3,238.26,7.14]
[1758317770041,0.02,238.3,238.27,3.62299618]
[1758317770247,0.02,238.3,238.29,7.14]
[1758317770444,0.02,238.3,238.29,10.76299618]
[1758317780851,0.02,238.3,238.29,7.14]
[1758317794274,6.6,238.3,238.28,10.6148]
[1758317794462,0.02,238.3,238.29,6.84]
[1758317795762,0.02,238.3,238.28,3.7748]
[1758317795963,0.02,238.3,238.29,6.84]
[1758317869025,0.02,238.3,238.29,10.6147]
[1758317881141,4.70215774,238.41,238.36,6.69]
[1758317881333,3.7725,238.43,238.31,6.69]
[1758317881334,11.30215774,238.39,238.31,6.69]
[1758317881533,6.6,238.39,238.31,6.69]
[1758317881845,6.6,238.39,238.34,6.69]
[1758317882242,6.6,238.39,238.33,6.71707946]
[1758317882844,6.6,238.39,238.33,10.49097946]
[1758317884450,8.47505774,238.41,238.33,6.71707946]
[1758317884648,15.07525774,238.4,238.33,6.71707946]
[1758317885546,11.30215774,238.4,238.33,6.71707946]
[1758317888152,4.70215774,238.39,238.33,0.02707946]
[1758317888352,6.6,238.38,238.33,0.02707946]
[1758317888649,4.70215774,238.39,238.33,0.02707946]
[1758317889850,6.6,238.38,238.33,0.02707946]
[1758317890049,6.6,238.38,238.33,6.71707946]
[1758317890254,4.70215774,238.39,238.33,6.71707946]
[1758317890454,4.70215774,238.39,238.33,0.02707946]
[1758317890953,6.6,238.38,238.33,0.02707946]
[1758317891351,4.70215774,238.4,238.34,6.69]
[1758317891551,4.70215774,238.4,238.33,0.02707946]
[1758317891856,6.6,238.39,238.33,6.71707946]
[1758317896664,11.30215774,238.39,238.33,6.71707946]
[1758317899660,6.6,238.39,238.33,6.71707946]
[1758317901561,11.30215774,238.39,238.33,6.71707946]
[1758317904459,15.07525774,238.39,238.33,6.71707946]
[1758317904760,6.6,238.37,238.33,6.71707946]
[1758317904961,6.6,238.37,238.34,6.69]
[1758317905158,8.47525774,238.39,238.34,6.69]
[1758317905353,4.70215774,238.38,238.34,6.69]
[1758317905556,6.6,238.37,238.34,6.69]
[1758317905856,4.70215774,238.38,238.34,6.69]
[1758317906056,6.6,238.37,238.34,6.69]
[1758317906964,4.70215774,238.38,238.34,6.69]
[1758317907163,6.6,238.37,238.34,6.69]
[1758317910168,11.30215774,238.37,238.34,6.69]
[1758317910967,6.6,238.37,238.34,6.69]
[1758317911268,4.70215774,238.38,238.34,6.69]
[1758317911470,4.70215774,238.39,238.33,0.02707946]
[1758317911861,4.70215774,238.39,238.34,7.02]
[1758317912060,7.2,238.38,238.34,7.02]
[1758317912565,11.90215774,238.39,238.33,7.04707946]
[1758317913167,7.2,238.37,238.34,7.02]
[1758317913667,7.2,238.37,238.33,0.02707946]
[1758317914071,7.2,238.37,238.34,7.02]
[1758317914771,4.70215774,238.39,238.33,0.02707946]
[1758317915173,7.2,238.38,238.33,0.02707946]
[1758317915573,11.90215774,238.39,238.33,7.04707946]
[1758317917073,4.70215774,238.38,238.34,7.02]
[1758317917375,7.2,238.37,238.34,7.02]
[1758317917573,4.70215774,238.38,238.34,7.02]
[1758317917872,7.2,238.37,238.34,7.02]
[1758317918574,4.70215774,238.38,238.34,7.02]
[1758317918963,7.2,238.37,238.34,7.02]
[1758317919873,4.70215774,238.38,238.34,7.02]
[1758317920074,7.2,238.37,238.34,7.02]
[1758317921271,4.70215774,238.38,238.34,7.02]
[1758317921470,7.2,238.37,238.34,7.02]
[1758317923970,4.70215774,238.38,238.33,0.02707946]
[1758317924170,7.2,238.36,238.33,7.04707946]
[1758317925976,4.70215774,238.38,238.33,7.04707946]
[1758317926168,7.2,238.37,238.33,7.04707946]
[1758317926978,4.70215774,238.38,238.33,7.04707946]
[1758317927276,7.2,238.37,238.33,7.04707946]
[1758317927476,4.70215774,238.38,238.33,7.04707946]
[1758317928277,7.2,238.37,238.33,7.04707946]
[1758317928779,4.70215774,238.38,238.33,7.04707946]
[1758317929081,7.2,238.37,238.34,7.02]
[1758317932980,11.90215774,238.36,238.33,7.04707946]
[1758317933180,7.2,238.36,238.33,7.04707946]
[1758317933577,4.70215774,238.37,238.33,7.04707946]
[1758317933779,7.2,238.36,238.33,7.04707946]
[1758317933977,4.70215774,238.37,238.33,7.04707946]
[1758317935182,7.2,238.36,238.33,7.04707946]
[1758317936886,4.70215774,238.37,238.33,7.04707946]
[1758317937184,7.2,238.36,238.33,7.04707946]
[1758317941485,11.68215774,238.36,238.33,7.04707946]
[1758317941785,11.68215774,238.36,238.34,7.21]
[1758317942285,11.68215774,238.36,238.33,7.23707946]
[1758317943187,4.70215774,238.35,238.33,7.23707946]
[1758317943688,11.68215774,238.35,238.33,7.23707946]
[1758317943987,6.98,238.34,238.33,0.02707946]
[1758317944180,11.69629883,238.34,238.33,0.02707946]
[1758317944382,6.98,238.34,238.33,0.02707946]
[1758317946191,11.69444099,238.34,238.33,0.02707946]
[1758317951490,6.98,238.34,238.33,0.02707946]
[1758317978307,11.69444099,238.34,238.33,0.02707946]
[1758317984218,6.98,238.34,238.33,0.02707946]
[1758318000126,10.7539,238.34,238.29,0.42969032]
[1758318000332,7.12,238.3,238.29,0.42969032]
[1758318000627,38.9957037,238.31,238.29,7.55969032]
[1758318000925,4.71863194,238.3,238.29,7.55969032]
[1758318001127,11.83863194,238.31,238.29,7.55969032]
[1758318001630,7.12,238.31,238.29,7.55969032]
[1758318001932,7.12,238.31,238.29,7.13]
[1758318002426,11.86945275,238.32,238.24,7.13]
[1758318003134,11.83863194,238.29,238.24,7.13]
[1758318003432,114.99863194,238.28,238.16,7.13]
[1758318004132,7.12,238.24,238.17,3.7765]
[1758318004526,7.14907935,238.24,238.17,3.7765]
[1758318012841,7.14907935,238.24,238.18,7.13]
[1758318016538,7.12,238.23,238.12,7.13]
[1758318016840,0.02907935,238.24,238.14,7.13]
[1758318017241,7.12,238.26,238.14,7.13]
[1758318017443,0.0287224,238.21,238.14,7.13]
[1758318017748,0.0287224,238.21,238.19,7.13]
[1758318018744,0.0287224,238.21,238.18,3.7763]
[1758318019146,0.0287224,238.21,238.19,7.13]
[1758318020948,0.0287224,238.21,238.18,3.7763]
[1758318021447,0.0287224,238.21,238.19,7.13]
[1758318021849,0.0287224,238.21,238.18,3.7763]
[1758318022049,0.0287224,238.21,238.19,7.13]
[1758318022242,0.0287224,238.21,238.18,3.7763]
[1758318022442,0.0287224,238.21,238.19,7.13]
[1758318022849,0.0287224,238.21,238.18,3.7763]
[1758318024051,0.0287224,238.21,238.19,7.13]
[1758318025252,0.0287224,238.21,238.18,3.7763]
[1758318025447,0.0287224,238.21,238.19,7.13]
[1758318025952,0.0287224,238.21,238.18,3.7763]
[1758318026148,0.0287224,238.21,238.19,7.13]
[1758318026748,0.0287224,238.21,238.18,3.7763]
[1758318026948,0.0287224,238.21,238.16,3.7767]
[1758318027152,0.0287224,238.21,238.17,7.13]
[1758318028053,0.0287224,238.21,238.16,3.7767]
[1758318028455,0.0287224,238.21,238.17,7.12]
[1758318028758,0.0287224,238.21,238.16,3.7767]
[1758318029157,0.0287224,238.21,238.17,7.12]
[1758318029354,0.0287224,238.21,238.16,3.7767]
[1758318029848,0.0287224,238.21,238.17,7.12]
[1758318030054,6.74,238.2,238.17,7.12]
[1758318031157,6.74,238.2,238.16,3.7767]
[1758318031353,6.74,238.2,238.17,7.12]
[1758318032353,0.0287224,238.21,238.17,7.12]
[1758318032657,6.74,238.2,238.17,7.12]
[1758318032956,0.0287224,238.21,238.16,3.7767]
[1758318033260,0.0287224,238.21,238.17,7.12]
[1758318033454,0.0287224,238.21,238.16,3.7767]
[1758318033653,0.0287224,238.21,238.17,7.12]
[1758318033853,0.0287224,238.21,238.16,3.7767]
[1758318034348,0.0287224,238.21,238.17,7.12]
[1758318034857,0.0287224,238.21,238.16,3.7767]
[1758318035053,0.0287224,238.21,238.17,7.12]
[1758318035253,0.0287224,238.21,238.16,3.7767]
[1758318035855,0.0287224,238.21,238.17,7.12]
[1758318036053,0.0287224,238.21,238.16,3.7767]
[1758318036561,0.0287224,238.21,238.17,7.12]
[1758318036756,0.0287224,238.21,238.16,3.7767]
[1758318037555,0.0287224,238.21,238.17,7.12]
[1758318038152,0.0287224,238.21,238.16,3.7767]
[1758318038657,0.0287224,238.21,238.17,7.12]
[1758318038858,0.0287224,238.21,238.16,3.7767]
[1758318039459,0.0287224,238.21,238.17,7.12]
[1758318039861,0.0287224,238.21,238.16,3.7767]
[1758318040057,0.0287224,238.21,238.17,7.12]
[1758318040255,0.0287224,238.21,238.16,3.7767]
[1758318041463,0.0287224,238.21,238.17,7.12]
[1758318041758,0.0287224,238.21,238.16,3.7767]
[1758318042563,0.0287224,238.21,238.17,7.12]
[1758318042763,0.0287224,238.21,238.16,3.7767]
[1758318043062,0.0287224,238.21,238.17,7.12]
[1758318043455,0.0287224,238.21,238.16,3.7767]
[1758318043866,0.0287224,238.21,238.17,7.12]
[1758318044067,0.0287224,238.21,238.16,3.7767]
[1758318045264,0.0287224,238.21,238.17,7.12]
[1758318045462,0.0287224,238.21,238.16,3.7767]
[1758318046666,0.0287224,238.21,238.17,7.12]
[1758318046868,0.0287224,238.21,238.16,3.7767]
[1758318047263,0.0287224,238.21,238.17,7.12]
[1758318047462,0.0287224,238.21,238.16,3.7767]
[1758318047668,6.7687224,238.21,238.16,3.7767]
[1758318047961,0.0287224,238.21,238.16,3.7767]
[1758318048160,0.0287224,238.21,238.17,7.12]
[1758318048762,0.0287224,238.21,238.16,3.7767]
[1758318049169,0.0287224,238.21,238.17,7.12]
[1758318049462,0.0287224,238.21,238.16,3.7767]
[1758318049862,0.0287224,238.21,238.17,7.12]
[1758318050265,0.0287224,238.21,238.16,3.7767]
[1758318051672,0.0287224,238.21,238.17,7.12]
[1758318052361,0.0287224,238.21,238.16,3.7767]
[1758318052565,0.0287224,238.21,238.17,7.12]
[1758318052865,0.0287224,238.21,238.16,3.7767]
[1758318053562,0.0287224,238.21,238.17,7.12]
[1758318053869,0.0287224,238.21,238.16,3.7767]
[1758318054068,0.0287224,238.21,238.17,7.12]
[1758318054469,0.0287224,238.21,238.16,3.7767]
[1758318055171,0.0287224,238.21,238.17,7.12]
[1758318055563,0.0287224,238.21,238.16,3.7767]
[1758318056068,0.0287224,238.21,238.17,7.12]
[1758318056268,0.0287224,238.21,238.16,3.7767]
[1758318056670,0.0287224,238.21,238.17,7.12]
[1758318056874,0.0287224,238.21,238.16,3.7767]
[1758318057076,0.0287224,238.21,238.17,7.12]
[1758318057776,6.7687224,238.21,238.17,7.12]